Cogmind - Beta 16.1 @@@ ROGUE MODE // 2026.02.10 @ 15:55:39 Player: opdo Result: Self-destructed Performance ------------- Evolutions (0) 0 Regions Visited (4) 800 Robots Destroyed (25) 125 Value Destroyed (426) 426 Prototype IDs (6) 120 Alien Tech Used (0) 0 Bonus (420) 420 TOTAL SCORE: 1891 Bonus ------- Follower Combat Kills 120 Registered with UFD 300 Cogmind --------- Core Integrity 18/250 Matter 290/300 Energy 160/160 System Corruption 0% Temperature Cool (0) Movement Treading (160) Location -9/Scraptown Parts ------- > --- POWER (1) -------- Light Nuclear Core > --- PROPULSION (2) --- Light Treads Light Treads > --- UTILITY (2) ------ Large Storage Unit Seismic Detector > --- WEAPON (2) ------- Particle Gun Particle Gun > --- INVENTORY (15) --- Subdweller Power Source Light Treads Subdweller Monowheel Subdweller Optics Improved Terrain Scanner Targeting Computer Hardened Medium Armor Plating Reactive Plating Particle Gun Particle Gun Assault Rifle Light Cannon Battle Cannon Heavy Rocket Launcher Mining Laser Peak State ------------ > --- POWER ------------ Light Nuclear Core > --- PROPULSION ------- Light Treads Light Treads > --- UTILITY ---------- Large Storage Unit Reactive Plating > --- WEAPON ----------- Particle Gun Particle Gun > --- INVENTORY -------- Subdweller Power Source Light Treads Subdweller Monowheel Visual Processing Unit Subdweller Optics Improved Terrain Scanner Seismic Detector Targeting Computer Hardened Medium Armor Plating Particle Gun Particle Gun Assault Rifle Light Cannon Grenade Launcher Mining Laser [Rating: 15] Favorites ----------- Power Light Nuclear Core Engine Light Ion Engine Power Core Light Nuclear Core Propulsion Light Treads Treads Light Treads Utility Large Storage Unit Device Seismic Detector Storage Large Storage Unit Protection Reactive Plating Weapon Particle Gun Energy Gun Particle Gun Ballistic Cannon Battle Cannon Launcher Grenade Launcher Special Weapon Mining Laser Build | -11 -10 -10 -10 -9 ------- Run | Yrd Mat Min Sub Scr Slots Evolved . | . . . . . Power . | . . . . . Propulsion . | . . . . . Utility . | . . . . . Weapon . | . . . . . Parts Attached 22 | 6 7 . 8 1 Power 3 | 1 1 . 1 . Engine 2 | 1 1 . . . Core 1 | . . . 1 . Reactor . | . . . . . Propulsion 4 | 2 1 . 1 . Treads 4 | 2 1 . 1 . Leg . | . . . . . Wheel . | . . . . . Hover . | . . . . . Flight . | . . . . . Utility 6 | 1 2 . 2 1 Device 2 | . 1 . 1 . Storage 3 | 1 1 . . 1 Processor . | . . . . . Hackware . | . . . . . Protection 1 | . . . 1 . Artifact . | . . . . . Weapon 9 | 2 3 . 4 . Energy Gun 6 | 2 2 . 2 . Energy Cannon . | . . . . . Ballistic Gun . | . . . . . Ballistic Cannon 1 | . . . 1 . Launcher 1 | . . . 1 . Special Weapon 1 | . 1 . . . Impact Weapon . | . . . . . Slashing Weapon . | . . . . . Piercing Weapon . | . . . . . Special Melee Weapon . | . . . . . Unidentified Prototypes . | . . . . . Parts Lost 4 | . 1 . 3 . Power 1 | . 1 . . . Propulsion 2 | . . . 2 . Utility . | . . . . . Weapon 1 | . . . 1 . Highest Loss Streak 2 | . 1 . 2 . To Critical Strikes 1 | . . . 1 . Average Backups 12 | 2 9 14 14 14 Power . | . . . . 1 Propulsion 2 | 1 2 3 2 2 Utility 3 | . 1 3 5 5 Weapon 5 | . 5 7 6 6 Tool/Special . | . . . . . Unused Backups 19 | . 5 3 1 10 Power 1 | . . . . 1 Propulsion 7 | . 4 1 . 2 Utility 4 | . . . 1 3 Weapon 7 | . 1 2 . 4 Tool/Special . | . . . . . Average Slot Usage (%) 97 | . 92 100 99 100 Engine 6 | . 13 14 2 . Core 7 | . . . 11 14 Treads 27 | . 28 28 27 28 Device 11 | . 7 14 13 14 Storage 14 | . 14 14 14 14 Energy Gun 27 | . 26 28 26 28 Peak Build Rating 15 | 6 13 13 15 14 Average Rating 11 | 5 8 12 12 13 On Entrance 8 | . 6 12 13 13 Avg Prop Armor Cover (%) . | . . . . . Naked Turns . | . . . . . Heaviest Build 41 | 12 30 30 41 32 Greatest Support 40 | 40 40 40 40 40 Greatest Overweight (x) 3 | 3 . . 1 . Average Overweight (x) . | . . . . . Largest Inventory Capacity 15 | 8 15 15 15 15 Average Capacity 13 | 7 10 15 15 15 Most Carried 15 | 5 15 15 15 15 Average Carried 12 | 2 9 14 14 14 Final Capacity 15 | 8 15 15 15 15 Final Carried 15 | 5 15 14 14 15 Class Distribution -------------------- 100% | Mutant Dominant Class ---------------- Mutant | -10/Materials Mutant | -10/Mines Mutant | -10/Subcaves Mutant | -9/Scraptown Resources | -11 -10 -10 -10 -9 ----------- Run | Yrd Mat Min Sub Scr Matter Collected 530 | 199 125 16 190 . Remotely . | . . . . . Salvage Created 609 | 25 336 24 224 . Parts 55 | 8 31 6 10 . Haulers Intercepted 2 | . 2 . . . Recyclers Shooed 2 | 1 . 1 . . Parts Field Recycled . | . . . . . Retrieved Matter . | . . . . . Parts Self-Destructed 9 | . . . 9 . Prevented . | . . . . . Parts Restored . | . . . . . Kills | -11 -10 -10 -10 -9 ------- Run | Yrd Mat Min Sub Scr Combat Hostiles Destroyed 18 | . 11 2 5 . Guns 16 | . 11 2 3 . AOE 2 | . . . 2 . Classes Destroyed 6 | 1 4 . 1 . Tunneler 3 | 2 1 . . . Hauler 2 | . 2 . . . Watcher 1 | . 1 . . . Swarmer 11 | . 9 2 . . Grunt 4 | . 2 . 2 . Subdweller 4 | . . . 4 . Best Kill Streak 3 | 2 3 2 2 . Combat Bots Only 3 | . 3 2 2 . Max Kills in Single Turn 2 | 1 2 1 2 . Gunslinging 1 | . 1 . . . Exploded 2 | . . . 2 . Melee . | . . . . . Uniques/NPCs Destroyed . | . . . . . Combat | -11 -10 -10 -10 -9 -------- Run | Yrd Mat Min Sub Scr Hostile Shots Fired 99 | . 58 7 34 . Missed 21 | . 11 3 7 . Hits 78 | . 47 4 27 . Projectile 78 | . 47 4 27 . Critical Strikes 2 | . 1 . 1 . Damage Taken 1049 | . 419 30 600 . Core 232 | . 49 16 167 . Absorbed by Shields . | . . . . . Ignored by Resistances 5 | . . . 5 . Core Remaining (%) 100 | 100 . . . . Volleys Fired 60 | 4 29 2 25 . Largest 2 | 2 2 2 2 . Hottest 140 | 80 140 130 130 . Shots Fired 117 | 8 58 4 47 . Gun 106 | 8 57 4 37 . Cannon 1 | . . . 1 . Launcher 9 | . . . 9 . Special 1 | . 1 . . . Kinetic 1 | . . . 1 . Thermal 107 | 8 58 4 37 . Explosive 9 | . . . 9 . Electromagnetic . | . . . . . Robot Hit Streak 9 | 5 9 2 6 . Robot Miss Streak 3 | 1 3 1 3 . Penetration Max . | . . . . . Secondary Targets 4 | . 3 1 . . Max Gunslinging Chain 1 | . 1 1 . . Shots Hit Robots 64 | 5 31 2 26 . Core Hits 32 | 2 18 2 10 . Critical Kills . | . . . . . Critical Parts Destroyed . | . . . . . Critical Strikes . | . . . . . Melee Attacks . | . . . . . Impact . | . . . . . Slashing . | . . . . . Piercing . | . . . . . Sneak Attacks . | . . . . . Combat Hostiles . | . . . . . Follow-up Attacks . | . . . . . Damage Inflicted 1158 | 55 358 63 682 . Guns 853 | 55 358 51 389 . Cannons . | . . . . . Explosions 293 | . . . 293 . Melee . | . . . . . Ramming 12 | . . 12 . . Kinetic . | . . . . . Thermal 853 | 55 358 51 389 . Explosive 293 | . . . 293 . Electromagnetic . | . . . . . Impact . | . . . . . Slashing . | . . . . . Piercing . | . . . . . Highest Corruption . | . . . . . Average Corruption . | . . . . . Corruption Purged . | . . . . . Corruption Blocked . | . . . . . Overload Shots . | . . . . . Overflow Damage . | . . . . . Projectiles . | . . . . . Explosions . | . . . . . Melee . | . . . . . Knockbacks . | . . . . . Impact . | . . . . . Kinetic . | . . . . . Secondary . | . . . . . Self-Inflicted Damage . | . . . . . Shots . | . . . . . Rammed 1 | . . 1 . . Targets Rammed 1 | . . 1 . . Kicked . | . . . . . Crushed . | . . . . . Highest Temperature 138 | 72 138 138 99 . Average Temperature 46 | 38 49 71 34 . Received Heat Transfer 216 | . 30 . 186 . Siege Activations . | . . . . . Martial Activations . | . . . . . Shielding Activations . | . . . . . Robots Disrupted . | . . . . . Combat Hostiles . | . . . . . Robots Corrupted . | . . . . . Combat Hostiles . | . . . . . Parts Fried . | . . . . . Impact Corruptions . | . . . . . Robots Melted . | . . . . . Combat Hostiles . | . . . . . Parts Melted 2 | . 1 . 1 . Heat Transferred 2021 | 125 823 111 962 . Parts Sabotaged . | . . . . . Parts Stolen . | . . . . . Parts Stripped . | . . . . . Power Chain Reactions . | . . . . . Alert | -11 -10 -10 -10 -9 ------- Run | Yrd Mat Min Sub Scr Maximum Alert Level . | . . . . . Low Security (%) 100 | 100 100 100 . . Level 1 . | . . . . . Level 2 . | . . . . . Level 3 . | . . . . . Level 4 . | . . . . . Level 5 . | . . . . . High Security . | . . . . . Max Security . | . . . . . Peak Influence 104 | 10 104 58 . . Initial . | . . . . . Average 18 | 1 22 10 . . Influence Increases 412 | 10 314 58 30 . Destroy 0b10 Robot/C 280 | . 220 40 20 . Destroy 0b10 Robot/NC 30 | 10 20 . . . Destroy Leader 66 | . 46 10 10 . Allied During Kill 8 | . . 8 . . Successful Hack 26 | . 26 . . . Destroy Structure 2 | . 2 . . . Influence Decreases 412 | 10 314 58 30 . Time Decay 392 | 10 304 58 20 . Lost Part 20 | . 10 . 10 . Squads Dispatched 2 | . 1 1 . . Investigation 2 | . 1 1 . . Extermination . | . . . . . Reinforcement . | . . . . . Assault . | . . . . . Garrison . | . . . . . Intercept . | . . . . . Searches Triggered . | . . . . . Construction Impeded . | . . . . . Haulers Reinforced . | . . . . . Active Scanning Responses . | . . . . . Cargo Convoy Interrupts . | . . . . . Stealth | -11 -10 -10 -10 -9 --------- Run | Yrd Mat Min Sub Scr Distress Signals . | . . . . . Communications Jammed . | . . . . . Distress Signals . | . . . . . Times Spotted 31 | . 19 3 9 . Peak Tracking Total 4 | . 4 3 2 . Tactical Retreats . | . . . . . Traps | -11 -10 -10 -10 -9 ------- Run | Yrd Mat Min Sub Scr Traps Triggered 2 | . 2 . . . Indirectly . | . . . . . Trap Hack Attempts . | . . . . . Triggered . | . . . . . Disarmed . | . . . . . Reprogrammed . | . . . . . Reused . | . . . . . Traps Extracted . | . . . . . Installed . | . . . . . Triggered . | . . . . . Machines | -11 -10 -10 -10 -9 ---------- Run | Yrd Mat Min Sub Scr Machines Disabled . | . . . . . Max in Single Turn . | . . . . . Machines Repaired . | . . . . . Machines Dismantled . | . . . . . Machines Sabotaged . | . . . . . Overloaded Fab Kills . | . . . . . Hacking | -11 -10 -10 -10 -9 --------- Run | Yrd Mat Min Sub Scr Machines Accessed 11 | . 8 2 . 1 Terminals 9 | . 8 1 . . Fabricators . | . . . . . Repair Stations . | . . . . . Recycling Units . | . . . . . Scanalyzers . | . . . . . Garrison Access . | . . . . . Total Hacks 27 | . 21 5 . 1 Successful 13 | . 9 3 . 1 Failed 14 | . 12 2 . . Catastrophic 2 | . 2 . . . Database Lockouts . | . . . . . Manual 22 | . 19 3 . . Terminals 25 | . 21 4 . . Fabricators . | . . . . . Repair Stations . | . . . . . Recycling Units . | . . . . . Scanalyzers . | . . . . . Garrison Access . | . . . . . Terminal Hacks 7 | . 3 3 . 1 Robot Analysis 1 | . . 1 . . Open Door 1 | . . 1 . . Emergency Access Points 1 | . 1 . . . Terminal Index 1 | . 1 . . . Locate Traps 1 | . 1 . . . Zone Layout 1 | . . 1 . . Proto ID Catalog 1 | . . . . 1 Fabricator Hacks . | . . . . . Repair Station Hacks . | . . . . . Recycling Unit Hacks . | . . . . . Scanalyzer . | . . . . . Garrison Access Hacks . | . . . . . Unauthorized Hacks 6 | . 6 . . . Terminals 6 | . 6 . . . Botnet 1 | . 1 . . . Skim 5 | . 5 . . . Fabricators . | . . . . . Repair Stations . | . . . . . Recycling Units . | . . . . . Scanalyzers . | . . . . . Garrison Access . | . . . . . Data Cores Recovered . | . . . . . Used . | . . . . . Hacking Detections 9 | . 8 1 . . Full Trace Events 1 | . 1 . . . Feedback Events . | . . . . . Feedback Blocked . | . . . . . Robot Schematics Acquired . | . . . . . Robots Built . | . . . . . Authchips . | . . . . . Time . | . . . . . Total Robot Build Rating . | . . . . . Part Schematics Acquired . | . . . . . Parts Built . | . . . . . Authchips . | . . . . . Time . | . . . . . Total Part Build Rating . | . . . . . Part Studies Acquired . | . . . . . Parts Repaired . | . . . . . Time . | . . . . . Parts Recycled . | . . . . . Recycled Matter . | . . . . . Retrieved Matter . | . . . . . Retrieved Components . | . . . . . Parts Scanalyzed . | . . . . . Part Schematics Acquired . | . . . . . Parts Damaged . | . . . . . Bothacking | -11 -10 -10 -10 -9 ------------ Run | Yrd Mat Min Sub Scr Used RIF Installer . | . . . . . Robots Hacked . | . . . . . Non-combat . | . . . . . Combat . | . . . . . Robot Hacks Applied . | . . . . . Relay Couplers Released . | . . . . . Fabnet Peak Effective % . | . . . . . Robots Rewired . | . . . . . Allies Hacked . | . . . . . Hacks Repelled . | . . . . . Allies | -11 -10 -10 -10 -9 -------- Run | Yrd Mat Min Sub Scr Total Allies 3 | . . 3 . . Largest Group 3 | . . 3 3 . Highest-Rated Group 40 | . . 40 40 . Highest-Rated Ally 16 | . . 16 16 . Total Orders . | . . . . . Ally Attacks 31 | . . . 31 . Total Damage 419 | . . . 419 . Kills 4 | . . . 4 . Allies Corrupted . | . . . . . Allies Melted . | . . . . . Intel | -11 -10 -10 -10 -9 ------- Run | Yrd Mat Min Sub Scr Active Infowar (turns) 2615 | . 580 338 811 886 Terrain 918 | . 580 338 . . Seismic 1697 | . . . 811 886 Robot Analysis Total 1 | . . 1 . . Derelict Logs Recovered 2 | . . 1 1 . Drone Launches . | . . . . . Drone Recoveries . | . . . . . Exploration | -11 -10 -10 -10 -9 ------------- Run | Yrd Mat Min Sub Scr Turns Passed 3306 | 116 1104 338 862 886 Spaces Moved 1808 | 59 543 202 452 552 Core 8 | 8 . . . . Treads 1800 | 51 543 202 452 552 Legs . | . . . . . Wheels . | . . . . . Hover . | . . . . . Flight . | . . . . . Fastest Speed 50 | 50 160 160 160 160 Average Speed 160 | 155 160 160 161 160 Slowest Speed 240 | 200 160 160 240 160 Overloaded Moves . | . . . . . Propulsion Burnouts . | . . . . . Robots Hopped . | . . . . . Potential Cave-ins . | . . . . . Cave-ins Triggered . | . . . . . Exploration Rate (%) 41 | 3 89 39 33 41 Regions Visited 4 Branch Regions 3 Pre-discovered Areas 4 | . 3 . 1 . Known Exits Taken 2 | . 1 1 . . Unknown Exits Taken 2 | 1 . . 1 . Scrap Searched . | . . . . . Spaces Dug 1 | . 1 . . . Terrain Destroyed 42 | . 1 . 41 . Melee . | . . . . . Projectile 1 | . 1 . . . AOE 41 | . . . 41 . Terrain Rammed . | . . . . . Walls Destroyed . | . . . . . Machines Disabled . | . . . . . Actions | -11 -10 -10 -10 -9 --------- Run | Yrd Mat Min Sub Scr Total 2101 | 73 724 214 535 555 Wait 162 | . 115 5 42 . Move 1804 | 58 542 201 451 552 Hop . | . . . . . Pick Up 31 | 5 19 2 4 1 Fast Attach 6 | 6 . . . . Attach 5 | . 2 . 3 . Detach . | . . . . . Swap 15 | . 6 . 8 1 Drop 17 | . 11 3 2 1 Fire 60 | 4 29 2 25 . Melee . | . . . . . Ram . | . . . . . Kick . | . . . . . Crush 1 | . . 1 . . Escape Stasis . | . . . . . Rewire . | . . . . . Trap . | . . . . . Miscellaneous . | . . . . . Route ------- -11/Scrapyard -10/Materials (discovered 6 exits: *Mat x3 / *Min x2 / Sub) -10/Mines (discovered 3 exits: *Mat x2 / *Sub) -10/Subcaves -9/Scraptown History --------- Turn | Location | Event 16 | -11/Scrapyard | Discovered new exit (range 16) 117 | -11/Scrapyard | Entered Materials 243 | -10/Materials | Discovered new exit (range 11) 308 | -10/Materials | Build established: Mutant 405 | -10/Materials | Discovered new exit (range 4) 588 | -10/Materials | Discovered new exit (range 10) 600 | -10/Materials | Discovered new exit (range 15) 838 | -10/Materials | Discovered new exit (range 10) 974 | -10/Materials | Learned 2 Mines zone layouts 1025 | -10/Materials | Identified exit to Mines 1066 | -10/Materials | Learned location of 2 exits from Mines 1098 | -10/Materials | Identified exit to Subcaves 1098 | -10/Materials | Learned location of 2 exits from Materials 1121 | -10/Materials | Learned location of 2 exits from Mines 1150 | -10/Materials | Learned location of Mines (-10) 1205 | -10/Materials | Loaded intel: 38 machine locations 1221 | -10/Materials | Entered Mines 1222 | -10/Mines | Identified exit to Materials 1266 | -10/Mines | Met a Derelict bent on vengeance 1325 | -10/Mines | Assisted by bots powering up and referring to "LRC-V3" 1440 | -10/Mines | Met a Derelict shopkeep closing up shop 1485 | -10/Mines | Learned location of 2 exits from Materials 1559 | -10/Mines | Entered Subcaves 1559 | -10/Subcaves | Accompanied by 3 allies 1560 | -10/Subcaves | Approached by a straggling Scientist 1652 | -10/Subcaves | Core integrity fell below 50% 1957 | -10/Subcaves | Shifting Twisted Machinery released Battle Cannon 1960 | -10/Subcaves | Shifting Twisted Machinery released Sub. Beam Cannon 2167 | -10/Subcaves | Scientist uncovered a shortcut to Scraptown 2229 | -10/Subcaves | Learned location of Storage (-9) 2250 | -10/Subcaves | Core integrity fell below 20% 2277 | -10/Subcaves | Ambushed by Subdweller buried in earth 2421 | -10/Subcaves | Entered Scraptown 2537 | -9/Scraptown | Visited UFD Registry 2537 | -9/Scraptown | Registered with UFD as "Shockgrid" 2639 | -9/Scraptown | Visited Modified Component R&D 2765 | -9/Scraptown | Visited Junk Repository 2905 | -9/Scraptown | Visited Supply Room 3106 | -9/Scraptown | Visited Science Guys 3307 | -9/Scraptown | Self-destructed Last Messages --------------- System Spiker Voltaic Drivehammer Thermal Lance Mindflail Acceleration Regulator Hcp. Trap Extractor Preattuning Coils Mak. Powered Armor Regenerative Guardplate Interdictor 741C Chamberscale Vortex Pulse Array Cloaking Wrap 03222_ LOCAL NARROWCAST: Closed for remodeling. 03237_ JF-L47(p) is fixated on the mainframe. QW-5F7(j): Have you ever actually seen a subatomizer? I doubt they even exist, just a big lie by the Science Guys to get us to fund another of their costly projects. Map ----- +----------------------------------------------------+ | | | | | | | ?????????????????????????????????????????????????? | | ?????????????????????????????????????????????????? | | ?????????????????????????????????????????????????? | | ?????????????????????????????????????????????????? | | ?????????????????????????????????????????????????? | | ?????????????????????????????????????????????????? | | ?????????????????????????????????????????????????? | | ?????????????????????????????????????????????????? | | ?????????????????????????????????????????????????? | | ?????????????????????????????????????????????????? | | ?????????????????????????????????????????????????? | | ?????????????????????????????????????????????????? | | ?????????????????????????????????????????????????? | | ?????????????????????????????????????????????????? | | ?????????????????????????????????????????????????? | | ?????????????????????????????????????????????????? | | ?????????????????????????????????????????????????? | | ?????????????????????????????????????????????????? | | ?????????????????????????????????????????????????? | | ???????????????##############????????????????????? | | ????????????? #""""""""""""#????????????????????? | | ????????????? #"""""""# "["#????????????????????? | | ????????????? #" " [[# @ #????????????????????? | | ????????????# #"= #+####????????????????????? | | ????????????# #" """#????????????????????? | | ?#?##??####?# #"= ["#????????????????????? | | ?? ? ?? #?# #""""" ""#????????????????????? | | ?? ## #?# #####" "#????????????????????? | | ???$ $ ??# #""""" X#????????????????????? | | ???? #?# # [ [ ##????????????????????? | | ????? ??# # "#????????????????????? | | ?????? ???# # "#????????????????????? | | ??????# #???# ## ###########????????????????????? | | ####### ##### ## ##?????????????????????????????? | | """"""" """"" "" "#?????????????????????????????? | | "#????"??"?????????????????????? | | "#???"""""""???????????????????? | | "#?? " """???????????????????? | | "## """???????????????????? | | """???????????????????? | | """"""""""""" "## """"""""???????????????????? | | """"""""""""" "#??""!""??????????????????????? | | ###########"" "#???""""??????????????????????? | | ??????????#"" "#????#?#??????????????????????? | | ??????????#"" "#????" ???????????????????????? | | ??????????#"" "#??? "#??????????????????????? | | ????????###"" "#?? "#??????????????????????? | +----------------------------------------------------+ Best States ------------- Heat Dissipation 25 Energy Generation 14 Energy Capacity 250 Matter Stores 300 Matter Capacity 300 Sight Range 16 Terrain Scan Range 16 Terrain Scan Density 10 Armor Coverage 150 Resistance: KI 20 Evasion (%) 40 Recoil Reduction 2 Item Schematics ----------------- None Robot Schematics ------------------ None Fabricated ------------ Nothing Repaired ---------- Nothing Studied --------- None Alien Tech Used ----------------- None Achievements -------------- None Challenges ------------ None Game ------ Seed DirtyConceptSuit Manual? 0 Play Time 00:15:24 Cumulative 150.8 hours Start 2026.02.10 @ 00:06:12 End 2026.02.10 @ 15:55:39 Sessions 4 Manual Loads 0 Difficulty Rogue Special Mode None Game No. 369 Rogue 367 Adventurer 2 Explorer 0 Win Type - Total 1 Types 1/0/0/0/0/0/0/0/0/0 Lore% 81 Gallery% 61 Achievement% 44 Wizard Run 0 Options --------- Layout 2 ASCII 0 Keyboard 0 Movement Numpad Keybinds 0 Fullscreen 2 Font 24/Smallcaps Map View 50x44 Zoom Use 0% Tactical HUD 1 Map Filters NONE Filters NONE Steam 1 RUN: 241bdf73-5a52-40c4-9093-0135c5ff560d